Workbook

Sheet Bid Worksheet
B1: BID # 06-19-010 | C1: SQ FT | F1: SQ FT cost | G1: =(H305/D1) -> 
B2: Bid Worksheet: Main St Bld D
B4: Description | C4: Quantity | D4: Trade Price | E4: Unit | F4: Labor | G4: Unit | H4: Total Material | I4: Total Hours | J4: Vendor
A5: 1 | B5: U1 | C5: 67 | D5: $0.00 | E5: E | F5: 0.65 | G5: E | H5: =VLOOKUP(E5,'UNIT CODES'!$A$2:$B$5,2,FALSE)*(D5)*(C5) -> $0.00 | I5: =VLOOKUP(G5,'UNIT CODES'!$A$2:$B$5,2,FALSE)*(F5)*(C5) -> 43.55
A6: 2 | B6: U2 | C6: 52 | D6: $0.00 | E6: E | F6: 0.65 | G6: E | H6: =VLOOKUP(E6,'UNIT CODES'!$A$2:$B$5,2,FALSE)*(D6)*(C6) -> $0.00 | I6: =VLOOKUP(G6,'UNIT CODES'!$A$2:$B$5,2,FALSE)*(F6)*(C6) -> 33.80
A7: 3 | B7: U3 | C7: 21 | D7: $0.00 | E7: E | F7: 0.65 | G7: E | H7: =VLOOKUP(E7,'UNIT CODES'!$A$2:$B$5,2,FALSE)*(D7)*(C7) -> $0.00 | I7: =VLOOKUP(G7,'UNIT CODES'!$A$2:$B$5,2,FALSE)*(F7)*(C7) -> 13.65
A8: 4 | B8: U4 | C8: 102 | D8: $0.00 | E8: C | F8: 22 | G8: C | H8: =VLOOKUP(E8,'UNIT CODES'!$A$2:$B$5,2,FALSE)*(D8)*(C8) -> $0.00 | I8: =VLOOKUP(G8,'UNIT CODES'!$A$2:$B$5,2,FALSE)*(F8)*(C8) -> 22.44
A9: 5 | B9: U5 | C9: 79 | D9: $0.00 | E9: E | F9: 0.75 | G9: E | H9: =VLOOKUP(E9,'UNIT CODES'!$A$2:$B$5,2,FALSE)*(D9)*(C9) -> $0.00 | I9: =VLOOKUP(G9,'UNIT CODES'!$A$2:$B$5,2,FALSE)*(F9)*(C9) -> 59.25
A10: 6 | B10: U6 | C10: 63 | D10: $0.00 | E10: E | F10: 0.65 | G10: E | H10: =VLOOKUP(E10,'UNIT CODES'!$A$2:$B$5,2,FALSE)*(D10)*(C10) -> $0.00 | I10: =VLOOKUP(G10,'UNIT CODES'!$A$2:$B$5,2,FALSE)*(F10)*(C10) -> 40.95
A11: 7 | B11: U7 | C11: 86 | D11: $0.00 | E11: E | F11: 0.65 | G11: E | H11: =VLOOKUP(E11,'UNIT CODES'!$A$2:$B$5,2,FALSE)*(D11)*(C11) -> $0.00 | I11: =VLOOKUP(G11,'UNIT CODES'!$A$2:$B$5,2,FALSE)*(F11)*(C11) -> 55.90
A12: 8 | B12: U8 | C12: 78 | D12: $0.00 | E12: E | F12: 0.65 | G12: E | H12: =VLOOKUP(E12,'UNIT CODES'!$A$2:$B$5,2,FALSE)*(D12)*(C12) -> $0.00 | I12: =VLOOKUP(G12,'UNIT CODES'!$A$2:$B$5,2,FALSE)*(F12)*(C12) -> 50.70
A13: 9 | B13: U9 | C13: 45 | D13: $0.00 | E13: E | F13: 0.65 | G13: E | H13: =VLOOKUP(E13,'UNIT CODES'!$A$2:$B$5,2,FALSE)*(D13)*(C13) -> $0.00 | I13: =VLOOKUP(G13,'UNIT CODES'!$A$2:$B$5,2,FALSE)*(F13)*(C13) -> 29.25
A14: 10 | B14: U11 | C14: 4 | D14: $0.00 | E14: E | F14: 0.65 | G14: E | H14: =VLOOKUP(E14,'UNIT CODES'!$A$2:$B$5,2,FALSE)*(D14)*(C14) -> $0.00 | I14: =VLOOKUP(G14,'UNIT CODES'!$A$2:$B$5,2,FALSE)*(F14)*(C14) -> 2.60
A15: 11 | B15: A1 | C15: 95 | D15: $0.00 | E15: E | F15: 0.65 | G15: E | H15: =VLOOKUP(E15,'UNIT CODES'!$A$2:$B$5,2,FALSE)*(D15)*(C15) -> $0.00 | I15: =VLOOKUP(G15,'UNIT CODES'!$A$2:$B$5,2,FALSE)*(F15)*(C15) -> 61.75
A16: 12 | B16: B1 | C16: 44 | D16: $0.00 | E16: E | F16: 0.75 | G16: E | H16: =VLOOKUP(E16,'UNIT CODES'!$A$2:$B$5,2,FALSE)*(D16)*(C16) -> $0.00 | I16: =VLOOKUP(G16,'UNIT CODES'!$A$2:$B$5,2,FALSE)*(F16)*(C16) -> 33.00
A17: 13 | B17: C1 | C17: 16 | D17: $0.00 | E17: E | F17: 0.75 | G17: E | H17: =VLOOKUP(E17,'UNIT CODES'!$A$2:$B$5,2,FALSE)*(D17)*(C17) -> $0.00 | I17: =VLOOKUP(G17,'UNIT CODES'!$A$2:$B$5,2,FALSE)*(F17)*(C17) -> 12.00
A18: 14 | B18: D1 | C18: 46 | D18: $0.00 | E18: E | F18: 0.45 | G18: E | H18: =VLOOKUP(E18,'UNIT CODES'!$A$2:$B$5,2,FALSE)*(D18)*(C18) -> $0.00 | I18: =VLOOKUP(G18,'UNIT CODES'!$A$2:$B$5,2,FALSE)*(F18)*(C18) -> 20.70
A19: 15 | B19: X1 | C19: 23 | D19: $90.00 | E19: E | F19: 0.35 | G19: E | H19: =VLOOKUP(E19,'UNIT CODES'!$A$2:$B$5,2,FALSE)*(D19)*(C19) -> $2,070.00 | I19: =VLOOKUP(G19,'UNIT CODES'!$A$2:$B$5,2,FALSE)*(F19)*(C19) -> 8.05
A20: 16 | B20: Panel A | C20: 27 | D20: $0.00 | E20: E | F20: 3 | G20: E | H20: =VLOOKUP(E20,'UNIT CODES'!$A$2:$B$5,2,FALSE)*(D20)*(C20) -> $0.00 | I20: =VLOOKUP(G20,'UNIT CODES'!$A$2:$B$5,2,FALSE)*(F20)*(C20) -> 81.00
A21: 17 | B21: Panel B | C21: 16 | D21: $0.00 | E21: E | F21: 3 | G21: E | H21: =VLOOKUP(E21,'UNIT CODES'!$A$2:$B$5,2,FALSE)*(D21)*(C21) -> $0.00 | I21: =VLOOKUP(G21,'UNIT CODES'!$A$2:$B$5,2,FALSE)*(F21)*(C21) -> 48.00
A22: 18 | B22: Panel D | C22: 2 | D22: $0.00 | E22: E | F22: 3 | G22: E | H22: =VLOOKUP(E22,'UNIT CODES'!$A$2:$B$5,2,FALSE)*(D22)*(C22) -> $0.00 | I22: =VLOOKUP(G22,'UNIT CODES'!$A$2:$B$5,2,FALSE)*(F22)*(C22) -> 6.00
A23: 19 | B23: Panel HP1D | C23: 1 | D23: $0.00 | E23: E | F23: 5.5 | G23: E | H23: =VLOOKUP(E23,'UNIT CODES'!$A$2:$B$5,2,FALSE)*(D23)*(C23) -> $0.00 | I23: =VLOOKUP(G23,'UNIT CODES'!$A$2:$B$5,2,FALSE)*(F23)*(C23) -> 5.50
A24: 20 | B24: 600A MLO | C24: 1 | D24: $0.00 | E24: E | F24: 7 | G24: E | H24: =VLOOKUP(E24,'UNIT CODES'!$A$2:$B$5,2,FALSE)*(D24)*(C24) -> $0.00 | I24: =VLOOKUP(G24,'UNIT CODES'!$A$2:$B$5,2,FALSE)*(F24)*(C24) -> 7.00
A25: 21 | B25: MSB | C25: 1 | D25: $0.00 | E25: E | F25: 48 | G25: E | H25: =VLOOKUP(E25,'UNIT CODES'!$A$2:$B$5,2,FALSE)*(D25)*(C25) -> $0.00 | I25: =VLOOKUP(G25,'UNIT CODES'!$A$2:$B$5,2,FALSE)*(F25)*(C25) -> 48.00
A26: 22 | B26: 1/2" CONDUIT - EMT | C26: 3,175 | D26: $40.56 | E26: C | F26: 2.78 | G26: C | H26: =VLOOKUP(E26,'UNIT CODES'!$A$2:$B$5,2,FALSE)*(D26)*(C26) -> $1,287.78 | I26: =VLOOKUP(G26,'UNIT CODES'!$A$2:$B$5,2,FALSE)*(F26)*(C26) -> 88.27
A27: 23 | B27: 3/4" CONDUIT - EMT | C27: 1,680 | D27: $71.87 | E27: C | F27: 3.2 | G27: C | H27: =VLOOKUP(E27,'UNIT CODES'!$A$2:$B$5,2,FALSE)*(D27)*(C27) -> $1,207.42 | I27: =VLOOKUP(G27,'UNIT CODES'!$A$2:$B$5,2,FALSE)*(F27)*(C27) -> 53.76
A28: 24 | B28: 1" CONDUIT - EMT | C28: 15 | D28: $123.60 | E28: C | F28: 4.05 | G28: C | H28: =VLOOKUP(E28,'UNIT CODES'!$A$2:$B$5,2,FALSE)*(D28)*(C28) -> $18.54 | I28: =VLOOKUP(G28,'UNIT CODES'!$A$2:$B$5,2,FALSE)*(F28)*(C28) -> 0.61
A29: 25 | B29: 1 1/4" CONDUIT - EMT | C29: 40 | D29: $200.62 | E29: C | F29: 4.7 | G29: C | H29: =VLOOKUP(E29,'UNIT CODES'!$A$2:$B$5,2,FALSE)*(D29)*(C29) -> $80.25 | I29: =VLOOKUP(G29,'UNIT CODES'!$A$2:$B$5,2,FALSE)*(F29)*(C29) -> 1.88
A30: 26 | B30: 1 1/2" CONDUIT - EMT | C30: 100 | D30: $245.95 | E30: C | F30: 5.92 | G30: C | H30: =VLOOKUP(E30,'UNIT CODES'!$A$2:$B$5,2,FALSE)*(D30)*(C30) -> $245.95 | I30: =VLOOKUP(G30,'UNIT CODES'!$A$2:$B$5,2,FALSE)*(F30)*(C30) -> 5.92
A31: 27 | B31: 2" CONDUIT - EMT | C31: 1,540 | D31: $287.75 | E31: C | F31: 6.8 | G31: C | H31: =VLOOKUP(E31,'UNIT CODES'!$A$2:$B$5,2,FALSE)*(D31)*(C31) -> $4,431.35 | I31: =VLOOKUP(G31,'UNIT CODES'!$A$2:$B$5,2,FALSE)*(F31)*(C31) -> 104.72
A32: 28 | B32: 3 1/2" CONDUIT - EMT | C32: 60 | D32: $732.34 | E32: C | F32: 11.4 | G32: C | H32: =VLOOKUP(E32,'UNIT CODES'!$A$2:$B$5,2,FALSE)*(D32)*(C32) -> $439.40 | I32: =VLOOKUP(G32,'UNIT CODES'!$A$2:$B$5,2,FALSE)*(F32)*(C32) -> 6.84
A33: 29 | B33: 1 1/4" ELBOW 90 DEG - EMT | C33: 2 | D33: $361.17 | E33: C | F33: 30 | G33: C | H33: =VLOOKUP(E33,'UNIT CODES'!$A$2:$B$5,2,FALSE)*(D33)*(C33) -> $7.22 | I33: =VLOOKUP(G33,'UNIT CODES'!$A$2:$B$5,2,FALSE)*(F33)*(C33) -> 0.60
A34: 30 | B34: 1 1/2" ELBOW 90 DEG - EMT | C34: 2 | D34: $437.27 | E34: C | F34: 40 | G34: C | H34: =VLOOKUP(E34,'UNIT CODES'!$A$2:$B$5,2,FALSE)*(D34)*(C34) -> $8.75 | I34: =VLOOKUP(G34,'UNIT CODES'!$A$2:$B$5,2,FALSE)*(F34)*(C34) -> 0.80
A35: 31 | B35: 2" ELBOW 90 DEG - EMT | C35: 30 | D35: $648.10 | E35: C | F35: 45 | G35: C | H35: =VLOOKUP(E35,'UNIT CODES'!$A$2:$B$5,2,FALSE)*(D35)*(C35) -> $194.43 | I35: =VLOOKUP(G35,'UNIT CODES'!$A$2:$B$5,2,FALSE)*(F35)*(C35) -> 13.50
A36: 32 | B36: 3 1/2" X 24" RAD ELBOW 90 DEG - EMT | C36: 10 | D36: $90.00 | E36: E | F36: 70 | G36: C | H36: =VLOOKUP(E36,'UNIT CODES'!$A$2:$B$5,2,FALSE)*(D36)*(C36) -> $900.00 | I36: =VLOOKUP(G36,'UNIT CODES'!$A$2:$B$5,2,FALSE)*(F36)*(C36) -> 7.00
A37: 33 | B37: 1/2" CONN SS STL - EMT | C37: 395 | D37: $18.83 | E37: C | F37: 8 | G37: C | H37: =VLOOKUP(E37,'UNIT CODES'!$A$2:$B$5,2,FALSE)*(D37)*(C37) -> $74.38 | I37: =VLOOKUP(G37,'UNIT CODES'!$A$2:$B$5,2,FALSE)*(F37)*(C37) -> 31.60
A38: 34 | B38: 3/4" CONN SS STL - EMT | C38: 214 | D38: $31.06 | E38: C | F38: 10 | G38: C | H38: =VLOOKUP(E38,'UNIT CODES'!$A$2:$B$5,2,FALSE)*(D38)*(C38) -> $66.47 | I38: =VLOOKUP(G38,'UNIT CODES'!$A$2:$B$5,2,FALSE)*(F38)*(C38) -> 21.40
A39: 35 | B39: 1 1/4" CONN SS STL - EMT | C39: 2 | D39: $137.23 | E39: C | F39: 14 | G39: C | H39: =VLOOKUP(E39,'UNIT CODES'!$A$2:$B$5,2,FALSE)*(D39)*(C39) -> $2.74 | I39: =VLOOKUP(G39,'UNIT CODES'!$A$2:$B$5,2,FALSE)*(F39)*(C39) -> 0.28
A40: 36 | B40: 1 1/2" CONN SS STL - EMT | C40: 6 | D40: $197.96 | E40: C | F40: 17 | G40: C | H40: =VLOOKUP(E40,'UNIT CODES'!$A$2:$B$5,2,FALSE)*(D40)*(C40) -> $11.88 | I40: =VLOOKUP(G40,'UNIT CODES'!$A$2:$B$5,2,FALSE)*(F40)*(C40) -> 1.02
A41: 37 | B41: 2" CONN SS STL - EMT | C41: 60 | D41: $283.79 | E41: C | F41: 20 | G41: C | H41: =VLOOKUP(E41,'UNIT CODES'!$A$2:$B$5,2,FALSE)*(D41)*(C41) -> $170.27 | I41: =VLOOKUP(G41,'UNIT CODES'!$A$2:$B$5,2,FALSE)*(F41)*(C41) -> 12.00
A42: 38 | B42: 1/2" COUPLING SS STL - EMT | C42: 310 | D42: $20.16 | E42: C | F42: 3.2 | G42: C | H42: =VLOOKUP(E42,'UNIT CODES'!$A$2:$B$5,2,FALSE)*(D42)*(C42) -> $62.50 | I42: =VLOOKUP(G42,'UNIT CODES'!$A$2:$B$5,2,FALSE)*(F42)*(C42) -> 9.92
A43: 39 | B43: 3/4" COUPLING SS STL - EMT | C43: 167 | D43: $31.16 | E43: C | F43: 4 | G43: C | H43: =VLOOKUP(E43,'UNIT CODES'!$A$2:$B$5,2,FALSE)*(D43)*(C43) -> $52.04 | I43: =VLOOKUP(G43,'UNIT CODES'!$A$2:$B$5,2,FALSE)*(F43)*(C43) -> 6.68
A44: 40 | B44: 1 1/4" COUPLING SS STL - EMT | C44: 8 | D44: $160.85 | E44: C | F44: 6.5 | G44: C | H44: =VLOOKUP(E44,'UNIT CODES'!$A$2:$B$5,2,FALSE)*(D44)*(C44) -> $12.87 | I44: =VLOOKUP(G44,'UNIT CODES'!$A$2:$B$5,2,FALSE)*(F44)*(C44) -> 0.52
A45: 41 | B45: 1 1/2" COUPLING SS STL - EMT | C45: 14 | D45: $233.44 | E45: C | F45: 8 | G45: C | H45: =VLOOKUP(E45,'UNIT CODES'!$A$2:$B$5,2,FALSE)*(D45)*(C45) -> $32.68 | I45: =VLOOKUP(G45,'UNIT CODES'!$A$2:$B$5,2,FALSE)*(F45)*(C45) -> 1.12
A46: 42 | B46: 2" COUPLING SS STL - EMT | C46: 214 | D46: $312.97 | E46: C | F46: 9.5 | G46: C | H46: =VLOOKUP(E46,'UNIT CODES'!$A$2:$B$5,2,FALSE)*(D46)*(C46) -> $669.76 | I46: =VLOOKUP(G46,'UNIT CODES'!$A$2:$B$5,2,FALSE)*(F46)*(C46) -> 20.33
A47: 43 | B47: 1" CONN COMP STL - EMT | C47: 3 | D47: $105.81 | E47: C | F47: 15.6 | G47: C | H47: =VLOOKUP(E47,'UNIT CODES'!$A$2:$B$5,2,FALSE)*(D47)*(C47) -> $3.17 | I47: =VLOOKUP(G47,'UNIT CODES'!$A$2:$B$5,2,FALSE)*(F47)*(C47) -> 0.47
A48: 44 | B48: 3 1/2" CONN COMP STL - EMT | C48: 10 | D48: $23.01 | E48: E | F48: 41.6 | G48: C | H48: =VLOOKUP(E48,'UNIT CODES'!$A$2:$B$5,2,FALSE)*(D48)*(C48) -> $230.10 | I48: =VLOOKUP(G48,'UNIT CODES'!$A$2:$B$5,2,FALSE)*(F48)*(C48) -> 4.16
A49: 45 | B49: 3 1/2" COUPLING COMP STL - EMT | C49: 20 | D49: $1,441.37 | E49: C | F49: 36 | G49: C | H49: =VLOOKUP(E49,'UNIT CODES'!$A$2:$B$5,2,FALSE)*(D49)*(C49) -> $288.27 | I49: =VLOOKUP(G49,'UNIT CODES'!$A$2:$B$5,2,FALSE)*(F49)*(C49) -> 7.20
A50: 46 | B50: 1 1/2" TYPE LB STD CONDUIT BODY - EMT - ALUM | C50: 2 | D50: $2,192.35 | E50: C | F50: 1 | G50: E | H50: =VLOOKUP(E50,'UNIT CODES'!$A$2:$B$5,2,FALSE)*(D50)*(C50) -> $43.85 | I50: =VLOOKUP(G50,'UNIT CODES'!$A$2:$B$5,2,FALSE)*(F50)*(C50) -> 2.00
A51: 47 | B51: 2" TYPE LB STD CONDUIT BODY - EMT - ALUM | C51: 1 | D51: $2,527.83 | E51: C | F51: 1.3 | G51: E | H51: =VLOOKUP(E51,'UNIT CODES'!$A$2:$B$5,2,FALSE)*(D51)*(C51) -> $25.28 | I51: =VLOOKUP(G51,'UNIT CODES'!$A$2:$B$5,2,FALSE)*(F51)*(C51) -> 1.30
A52: 48 | B52: 3/4" CONDUIT - RMC - GALV | C52: 300 | D52: $193.42 | E52: C | F52: 5 | G52: C | H52: =VLOOKUP(E52,'UNIT CODES'!$A$2:$B$5,2,FALSE)*(D52)*(C52) -> $580.26 | I52: =VLOOKUP(G52,'UNIT CODES'!$A$2:$B$5,2,FALSE)*(F52)*(C52) -> 15.00
A53: 49 | B53: 1" CONDUIT - RMC - GALV | C53: 18 | D53: $308.22 | E53: C | F53: 6.2 | G53: C | H53: =VLOOKUP(E53,'UNIT CODES'!$A$2:$B$5,2,FALSE)*(D53)*(C53) -> $55.48 | I53: =VLOOKUP(G53,'UNIT CODES'!$A$2:$B$5,2,FALSE)*(F53)*(C53) -> 1.12
A54: 50 | B54: 1 1/4" CONDUIT - RMC - GALV | C54: 5 | D54: $452.87 | E54: C | F54: 7.3 | G54: C | H54: =VLOOKUP(E54,'UNIT CODES'!$A$2:$B$5,2,FALSE)*(D54)*(C54) -> $22.64 | I54: =VLOOKUP(G54,'UNIT CODES'!$A$2:$B$5,2,FALSE)*(F54)*(C54) -> 0.37
A55: 51 | B55: 4" CONDUIT - RMC - GALV | C55: 45 | D55: $1,852.27 | E55: C | F55: 24.5 | G55: C | H55: =VLOOKUP(E55,'UNIT CODES'!$A$2:$B$5,2,FALSE)*(D55)*(C55) -> $833.52 | I55: =VLOOKUP(G55,'UNIT CODES'!$A$2:$B$5,2,FALSE)*(F55)*(C55) -> 11.03
A56: 52 | B56: 1" COUPLING - RMC - GALV | C56: 12 | D56: $192.78 | E56: C | F56: 0 | G56: C | H56: =VLOOKUP(E56,'UNIT CODES'!$A$2:$B$5,2,FALSE)*(D56)*(C56) -> $23.13 | I56: =VLOOKUP(G56,'UNIT CODES'!$A$2:$B$5,2,FALSE)*(F56)*(C56) -> 0.00
A57: 53 | B57: 4" COUPLING - RMC - GALV | C57: 54 | D57: $2,202.03 | E57: C | F57: 0 | G57: C | H57: =VLOOKUP(E57,'UNIT CODES'!$A$2:$B$5,2,FALSE)*(D57)*(C57) -> $1,189.10 | I57: =VLOOKUP(G57,'UNIT CODES'!$A$2:$B$5,2,FALSE)*(F57)*(C57) -> 0.00
A58: 54 | B58: 1" ELBOW 90 DEG - RMC - GALV | C58: 6 | D58: $824.82 | E58: C | F58: 32 | G58: C | H58: =VLOOKUP(E58,'UNIT CODES'!$A$2:$B$5,2,FALSE)*(D58)*(C58) -> $49.49 | I58: =VLOOKUP(G58,'UNIT CODES'!$A$2:$B$5,2,FALSE)*(F58)*(C58) -> 1.92
A59: 55 | B59: 4 x 36" RAD ELBOW 90 DEG - RMC - GALV | C59: 18 | D59: $199.00 | E59: E | F59: 194 | G59: C | H59: =VLOOKUP(E59,'UNIT CODES'!$A$2:$B$5,2,FALSE)*(D59)*(C59) -> $3,582.00 | I59: =VLOOKUP(G59,'UNIT CODES'!$A$2:$B$5,2,FALSE)*(F59)*(C59) -> 34.92
A60: 56 | B60: 3/4x 6" NIPPLE - RMC - GALV | C60: 48 | D60: $204.22 | E60: C | F60: 19.5 | G60: C | H60: =VLOOKUP(E60,'UNIT CODES'!$A$2:$B$5,2,FALSE)*(D60)*(C60) -> $98.03 | I60: =VLOOKUP(G60,'UNIT CODES'!$A$2:$B$5,2,FALSE)*(F60)*(C60) -> 9.36
A61: 57 | B61: 3/4x 12" NIPPLE - RMC - GALV | C61: 1 | D61: $454.76 | E61: C | F61: 19.5 | G61: C | H61: =VLOOKUP(E61,'UNIT CODES'!$A$2:$B$5,2,FALSE)*(D61)*(C61) -> $4.55 | I61: =VLOOKUP(G61,'UNIT CODES'!$A$2:$B$5,2,FALSE)*(F61)*(C61) -> 0.20
A62: 58 | B62: 1 1/4x 6" NIPPLE - RMC - GALV | C62: 1 | D62: $387.72 | E62: C | F62: 26 | G62: C | H62: =VLOOKUP(E62,'UNIT CODES'!$A$2:$B$5,2,FALSE)*(D62)*(C62) -> $3.88 | I62: =VLOOKUP(G62,'UNIT CODES'!$A$2:$B$5,2,FALSE)*(F62)*(C62) -> 0.26
A63: 59 | B63: 3/4" CONN THRD HUB INSUL W/ GRD LUG MALL STG2 | C63: 49 | D63: $1,846.61 | E63: C | F63: 27.2 | G63: C | H63: =VLOOKUP(E63,'UNIT CODES'!$A$2:$B$5,2,FALSE)*(D63)*(C63) -> $904.84 | I63: =VLOOKUP(G63,'UNIT CODES'!$A$2:$B$5,2,FALSE)*(F63)*(C63) -> 13.33
A64: 60 | B64: 1 1/4" CONN THRD HUB INSUL W/ GRD LUG - MALL STG4 | C64: 2 | D64: $2,815.65 | E64: C | F64: 37.6 | G64: C | H64: =VLOOKUP(E64,'UNIT CODES'!$A$2:$B$5,2,FALSE)*(D64)*(C64) -> $56.31 | I64: =VLOOKUP(G64,'UNIT CODES'!$A$2:$B$5,2,FALSE)*(F64)*(C64) -> 0.75
A65: 61 | B65: 3/4" TYPE LB FORM 7 CONDUIT BODY W/ CVR & GSKT - RMC | C65: 101 | D65: $19.01 | E65: E | F65: 0.33 | G65: E | H65: =VLOOKUP(E65,'UNIT CODES'!$A$2:$B$5,2,FALSE)*(D65)*(C65) -> $1,920.01 | I65: =VLOOKUP(G65,'UNIT CODES'!$A$2:$B$5,2,FALSE)*(F65)*(C65) -> 33.33
A66: 62 | B66: 1 1/4" TYPE LB FORM 7 CONDUIT BODY W/ CVR & GSKT - RMC | C66: 2 | D66: $31.35 | E66: E | F66: 0.82 | G66: E | H66: =VLOOKUP(E66,'UNIT CODES'!$A$2:$B$5,2,FALSE)*(D66)*(C66) -> $62.70 | I66: =VLOOKUP(G66,'UNIT CODES'!$A$2:$B$5,2,FALSE)*(F66)*(C66) -> 1.64
A67: 63 | B67: 3/4" TYPE T FORM 7 CONDUIT BODY W/ CVR & GSKT - RMC | C67: 3 | D67: $19.02 | E67: E | F67: 0.68 | G67: E | H67: =VLOOKUP(E67,'UNIT CODES'!$A$2:$B$5,2,FALSE)*(D67)*(C67) -> $57.06 | I67: =VLOOKUP(G67,'UNIT CODES'!$A$2:$B$5,2,FALSE)*(F67)*(C67) -> 2.04
A68: 64 | B68: 3/4" LOCKNUT - STEEL | C68: 4 | D68: $21.60 | E68: C | F68: 2.3 | G68: C | H68: =VLOOKUP(E68,'UNIT CODES'!$A$2:$B$5,2,FALSE)*(D68)*(C68) -> $0.86 | I68: =VLOOKUP(G68,'UNIT CODES'!$A$2:$B$5,2,FALSE)*(F68)*(C68) -> 0.09
A69: 65 | B69: 2" BUSHING - PLASTIC | C69: 58 | D69: $50.70 | E69: C | F69: 5.8 | G69: C | H69: =VLOOKUP(E69,'UNIT CODES'!$A$2:$B$5,2,FALSE)*(D69)*(C69) -> $29.41 | I69: =VLOOKUP(G69,'UNIT CODES'!$A$2:$B$5,2,FALSE)*(F69)*(C69) -> 3.36
A70: 66 | B70: 3 1/2" BUSHING - PLASTIC | C70: 10 | D70: $147.25 | E70: C | F70: 9.4 | G70: C | H70: =VLOOKUP(E70,'UNIT CODES'!$A$2:$B$5,2,FALSE)*(D70)*(C70) -> $14.73 | I70: =VLOOKUP(G70,'UNIT CODES'!$A$2:$B$5,2,FALSE)*(F70)*(C70) -> 0.94
A71: 67 | B71: 1" BUSHING GRDG INSUL 150 DEG - MALL | C71: 3 | D71: $573.00 | E71: C | F71: 3.6 | G71: C | H71: =VLOOKUP(E71,'UNIT CODES'!$A$2:$B$5,2,FALSE)*(D71)*(C71) -> $17.19 | I71: =VLOOKUP(G71,'UNIT CODES'!$A$2:$B$5,2,FALSE)*(F71)*(C71) -> 0.11
A72: 68 | B72: 4" BUSHING GRDG INSUL 150 DEG - STEEL | C72: 18 | D72: $2,311.25 | E72: C | F72: 15.2 | G72: C | H72: =VLOOKUP(E72,'UNIT CODES'!$A$2:$B$5,2,FALSE)*(D72)*(C72) -> $416.03 | I72: =VLOOKUP(G72,'UNIT CODES'!$A$2:$B$5,2,FALSE)*(F72)*(C72) -> 2.74
A73: 69 | B73: 1/2" 1-H STRAP - RMC - STEEL | C73: 54 | D73: $0.17 | E73: E | F73: 4.9 | G73: C | H73: =VLOOKUP(E73,'UNIT CODES'!$A$2:$B$5,2,FALSE)*(D73)*(C73) -> $9.18 | I73: =VLOOKUP(G73,'UNIT CODES'!$A$2:$B$5,2,FALSE)*(F73)*(C73) -> 2.65
A74: 70 | B74: 3/4" 1-H STRAP - RMC - STEEL | C74: 336 | D74: $0.26 | E74: E | F74: 5.4 | G74: C | H74: =VLOOKUP(E74,'UNIT CODES'!$A$2:$B$5,2,FALSE)*(D74)*(C74) -> $87.36 | I74: =VLOOKUP(G74,'UNIT CODES'!$A$2:$B$5,2,FALSE)*(F74)*(C74) -> 18.14
A75: 71 | B75: 1 1/4" 1-H STRAP - RMC - STEEL | C75: 7 | D75: $0.84 | E75: E | F75: 7 | G75: C | H75: =VLOOKUP(E75,'UNIT CODES'!$A$2:$B$5,2,FALSE)*(D75)*(C75) -> $5.88 | I75: =VLOOKUP(G75,'UNIT CODES'!$A$2:$B$5,2,FALSE)*(F75)*(C75) -> 0.49
A76: 72 | B76: 1/2" 1-H STRAP - EMT - STEEL | C76: 598 | D76: $12.00 | E76: C | F76: 4.9 | G76: C | H76: =VLOOKUP(E76,'UNIT CODES'!$A$2:$B$5,2,FALSE)*(D76)*(C76) -> $71.76 | I76: =VLOOKUP(G76,'UNIT CODES'!$A$2:$B$5,2,FALSE)*(F76)*(C76) -> 29.30
A77: 73 | B77: 3/4" 1-H STRAP - EMT - STEEL | C77: 158 | D77: $14.85 | E77: C | F77: 5.4 | G77: C | H77: =VLOOKUP(E77,'UNIT CODES'!$A$2:$B$5,2,FALSE)*(D77)*(C77) -> $23.46 | I77: =VLOOKUP(G77,'UNIT CODES'!$A$2:$B$5,2,FALSE)*(F77)*(C77) -> 8.53
A78: 74 | B78: 1 1/4" 1-H STRAP - EMT - STEEL | C78: 0 | D78: $59.49 | E78: C | F78: 0 | G78: C | H78: =VLOOKUP(E78,'UNIT CODES'!$A$2:$B$5,2,FALSE)*(D78)*(C78) -> $0.00 | I78: =VLOOKUP(G78,'UNIT CODES'!$A$2:$B$5,2,FALSE)*(F78)*(C78) -> 0.00
A79: 75 | B79: 1 1/2" 1-H STRAP - EMT - STEEL | C79: 10 | D79: $85.53 | E79: C | F79: 7.8 | G79: C | H79: =VLOOKUP(E79,'UNIT CODES'!$A$2:$B$5,2,FALSE)*(D79)*(C79) -> $8.55 | I79: =VLOOKUP(G79,'UNIT CODES'!$A$2:$B$5,2,FALSE)*(F79)*(C79) -> 0.78
A80: 76 | B80: 2" 1-H STRAP - EMT - STEEL | C80: 157 | D80: $125.07 | E80: C | F80: 9.2 | G80: C | H80: =VLOOKUP(E80,'UNIT CODES'!$A$2:$B$5,2,FALSE)*(D80)*(C80) -> $196.36 | I80: =VLOOKUP(G80,'UNIT CODES'!$A$2:$B$5,2,FALSE)*(F80)*(C80) -> 14.44
A81: 77 | B81: 3/4" 2-PC CONDUIT STRUT CLAMP | C81: 12 | D81: $1.69 | E81: E | F81: 5.1 | G81: C | H81: =VLOOKUP(E81,'UNIT CODES'!$A$2:$B$5,2,FALSE)*(D81)*(C81) -> $20.28 | I81: =VLOOKUP(G81,'UNIT CODES'!$A$2:$B$5,2,FALSE)*(F81)*(C81) -> 0.61
A82: 78 | B82: 1" 2-PC CONDUIT STRUT CLAMP | C82: 6 | D82: $1.78 | E82: E | F82: 5.6 | G82: C | H82: =VLOOKUP(E82,'UNIT CODES'!$A$2:$B$5,2,FALSE)*(D82)*(C82) -> $10.68 | I82: =VLOOKUP(G82,'UNIT CODES'!$A$2:$B$5,2,FALSE)*(F82)*(C82) -> 0.34
A83: 79 | B83: 1/2" SPRING STL CONDUIT CLAMP W/ BOLT | C83: 12 | D83: $0.48 | E83: E | F83: 5.5 | G83: C | H83: =VLOOKUP(E83,'UNIT CODES'!$A$2:$B$5,2,FALSE)*(D83)*(C83) -> $5.76 | I83: =VLOOKUP(G83,'UNIT CODES'!$A$2:$B$5,2,FALSE)*(F83)*(C83) -> 0.66
A84: 80 | B84: 1/2" CONDUIT SUPPORT FOR ROD OR FLNG | C84: 361 | D84: $0.43 | E84: E | F84: 4.6 | G84: C | H84: =VLOOKUP(E84,'UNIT CODES'!$A$2:$B$5,2,FALSE)*(D84)*(C84) -> $155.23 | I84: =VLOOKUP(G84,'UNIT CODES'!$A$2:$B$5,2,FALSE)*(F84)*(C84) -> 16.61
A85: 81 | B85: 1/2 OR 3/4" SNAP CLOSE CLIP - SIDE MNT TO MTL STUD SUPPORT | C85: 124 | D85: $1.44 | E85: E | F85: 7.2 | G85: C | H85: =VLOOKUP(E85,'UNIT CODES'!$A$2:$B$5,2,FALSE)*(D85)*(C85) -> $178.56 | I85: =VLOOKUP(G85,'UNIT CODES'!$A$2:$B$5,2,FALSE)*(F85)*(C85) -> 8.93
A86: 82 | B86: 1/2" FLEX - STEEL | C86: 12 | D86: $46.70 | E86: C | F86: 3 | G86: C | H86: =VLOOKUP(E86,'UNIT CODES'!$A$2:$B$5,2,FALSE)*(D86)*(C86) -> $5.60 | I86: =VLOOKUP(G86,'UNIT CODES'!$A$2:$B$5,2,FALSE)*(F86)*(C86) -> 0.36
A87: 83 | B87: 3/4" FLEX - STEEL | C87: 159 | D87: $63.53 | E87: C | F87: 3.9 | G87: C | H87: =VLOOKUP(E87,'UNIT CODES'!$A$2:$B$5,2,FALSE)*(D87)*(C87) -> $101.01 | I87: =VLOOKUP(G87,'UNIT CODES'!$A$2:$B$5,2,FALSE)*(F87)*(C87) -> 6.20
A88: 84 | B88: 1/2" CONN FLEX DC SQUEEZE STRAIGHT | C88: 8 | D88: $47.45 | E88: C | F88: 10 | G88: C | H88: =VLOOKUP(E88,'UNIT CODES'!$A$2:$B$5,2,FALSE)*(D88)*(C88) -> $3.80 | I88: =VLOOKUP(G88,'UNIT CODES'!$A$2:$B$5,2,FALSE)*(F88)*(C88) -> 0.80
A89: 85 | B89: 3/4" CONN FLEX DC SQUEEZE STRAIGHT | C89: 69 | D89: $80.41 | E89: C | F89: 10 | G89: C | H89: =VLOOKUP(E89,'UNIT CODES'!$A$2:$B$5,2,FALSE)*(D89)*(C89) -> $55.48 | I89: =VLOOKUP(G89,'UNIT CODES'!$A$2:$B$5,2,FALSE)*(F89)*(C89) -> 6.90
A90: 86 | B90: 1" FLEX NM RACEWAY - ENT - BLU | C90: 5,500 | D90: $71.00 | E90: C | F90: 2 | G90: C | H90: =VLOOKUP(E90,'UNIT CODES'!$A$2:$B$5,2,FALSE)*(D90)*(C90) -> $3,905.00 | I90: =VLOOKUP(G90,'UNIT CODES'!$A$2:$B$5,2,FALSE)*(F90)*(C90) -> 110.00
A91: 87 | B91: 1/2" FLEX - LIQUIDTIGHT METALLIC - GRAY | C91: 12 | D91: $54.59 | E91: C | F91: 3.9 | G91: C | H91: =VLOOKUP(E91,'UNIT CODES'!$A$2:$B$5,2,FALSE)*(D91)*(C91) -> $6.55 | I91: =VLOOKUP(G91,'UNIT CODES'!$A$2:$B$5,2,FALSE)*(F91)*(C91) -> 0.47
A92: 88 | B92: 3/4" FLEX - LIQUIDTIGHT METALLIC - GRAY | C92: 298 | D92: $68.93 | E92: C | F92: 4.95 | G92: C | H92: =VLOOKUP(E92,'UNIT CODES'!$A$2:$B$5,2,FALSE)*(D92)*(C92) -> $205.41 | I92: =VLOOKUP(G92,'UNIT CODES'!$A$2:$B$5,2,FALSE)*(F92)*(C92) -> 14.75
A93: 89 | B93: 1 1/4" FLEX - LIQUIDTIGHT METALLIC - GRAY | C93: 6 | D93: $145.75 | E93: C | F93: 8.9 | G93: C | H93: =VLOOKUP(E93,'UNIT CODES'!$A$2:$B$5,2,FALSE)*(D93)*(C93) -> $8.75 | I93: =VLOOKUP(G93,'UNIT CODES'!$A$2:$B$5,2,FALSE)*(F93)*(C93) -> 0.53
A94: 90 | B94: 2" FLEX - LIQUIDTIGHT METALLIC - GRAY | C94: 4 | D94: $274.32 | E94: C | F94: 15.8 | G94: C | H94: =VLOOKUP(E94,'UNIT CODES'!$A$2:$B$5,2,FALSE)*(D94)*(C94) -> $10.97 | I94: =VLOOKUP(G94,'UNIT CODES'!$A$2:$B$5,2,FALSE)*(F94)*(C94) -> 0.63
A95: 91 | B95: 1/2" CONN STRAIGHT - LIQUIDTIGHT DIECAST | C95: 8 | D95: $214.40 | E95: C | F95: 15 | G95: C | H95: =VLOOKUP(E95,'UNIT CODES'!$A$2:$B$5,2,FALSE)*(D95)*(C95) -> $17.15 | I95: =VLOOKUP(G95,'UNIT CODES'!$A$2:$B$5,2,FALSE)*(F95)*(C95) -> 1.20
A96: 92 | B96: 3/4" CONN STRAIGHT - LIQUIDTIGHT DIECAST | C96: 146 | D96: $551.54 | E96: C | F96: 17 | G96: C | H96: =VLOOKUP(E96,'UNIT CODES'!$A$2:$B$5,2,FALSE)*(D96)*(C96) -> $805.25 | I96: =VLOOKUP(G96,'UNIT CODES'!$A$2:$B$5,2,FALSE)*(F96)*(C96) -> 24.82
A97: 93 | B97: 1 1/4" CONN STRAIGHT - LIQUIDTIGHT DIECAST | C97: 3 | D97: $969.19 | E97: C | F97: 20 | G97: C | H97: =VLOOKUP(E97,'UNIT CODES'!$A$2:$B$5,2,FALSE)*(D97)*(C97) -> $29.08 | I97: =VLOOKUP(G97,'UNIT CODES'!$A$2:$B$5,2,FALSE)*(F97)*(C97) -> 0.60
A98: 94 | B98: 2" CONN STRAIGHT - LIQUIDTIGHT DIECAST | C98: 2 | D98: $2,265.86 | E98: C | F98: 30 | G98: C | H98: =VLOOKUP(E98,'UNIT CODES'!$A$2:$B$5,2,FALSE)*(D98)*(C98) -> $45.32 | I98: =VLOOKUP(G98,'UNIT CODES'!$A$2:$B$5,2,FALSE)*(F98)*(C98) -> 0.60
A99: 95 | B99: 1 1/4" CONN 90 DEG - LIQUIDTIGHT DIECAST | C99: 1 | D99: $1,729.52 | E99: C | F99: 20 | G99: C | H99: =VLOOKUP(E99,'UNIT CODES'!$A$2:$B$5,2,FALSE)*(D99)*(C99) -> $17.30 | I99: =VLOOKUP(G99,'UNIT CODES'!$A$2:$B$5,2,FALSE)*(F99)*(C99) -> 0.20
A100: 96 | B100: 3/4" CONN STRAIGHT INSUL - LIQUIDTIGHT DIECAST | C100: 52 | D100: $317.52 | E100: C | F100: 17 | G100: C | H100: =VLOOKUP(E100,'UNIT CODES'!$A$2:$B$5,2,FALSE)*(D100)*(C100) -> $165.11 | I100: =VLOOKUP(G100,'UNIT CODES'!$A$2:$B$5,2,FALSE)*(F100)*(C100) -> 8.84
A101: 97 | B101: 1" CONDUIT - PVC40 | C101: 60 | D101: $34.64 | E101: C | F101: 4.4 | G101: C | H101: =VLOOKUP(E101,'UNIT CODES'!$A$2:$B$5,2,FALSE)*(D101)*(C101) -> $20.78 | I101: =VLOOKUP(G101,'UNIT CODES'!$A$2:$B$5,2,FALSE)*(F101)*(C101) -> 2.64
A102: 98 | B102: 4" CONDUIT - PVC40 | C102: 250 | D102: $193.37 | E102: C | F102: 14.5 | G102: C | H102: =VLOOKUP(E102,'UNIT CODES'!$A$2:$B$5,2,FALSE)*(D102)*(C102) -> $483.43 | I102: =VLOOKUP(G102,'UNIT CODES'!$A$2:$B$5,2,FALSE)*(F102)*(C102) -> 36.25
A103: 99 | B103: 1" ELBOW 90 DEG - PVC40 | C103: 6 | D103: $97.97 | E103: C | F103: 22 | G103: C | H103: =VLOOKUP(E103,'UNIT CODES'!$A$2:$B$5,2,FALSE)*(D103)*(C103) -> $5.88 | I103: =VLOOKUP(G103,'UNIT CODES'!$A$2:$B$5,2,FALSE)*(F103)*(C103) -> 1.32
A104: 100 | B104: 4 x 36" RAD ELBOW 90 DEG - PVC80 | C104: 8 | D104: $118.00 | E104: E | F104: 120 | G104: C | H104: =VLOOKUP(E104,'UNIT CODES'!$A$2:$B$5,2,FALSE)*(D104)*(C104) -> $944.00 | I104: =VLOOKUP(G104,'UNIT CODES'!$A$2:$B$5,2,FALSE)*(F104)*(C104) -> 9.60
A105: 101 | B105: 4" COUPLING - PVC | C105: 24 | D105: $312.10 | E105: C | F105: 0 | G105: C | H105: =VLOOKUP(E105,'UNIT CODES'!$A$2:$B$5,2,FALSE)*(D105)*(C105) -> $74.90 | I105: =VLOOKUP(G105,'UNIT CODES'!$A$2:$B$5,2,FALSE)*(F105)*(C105) -> 0.00
A106: 102 | B106: 1" ADAPTER FEM - PVC | C106: 9 | D106: $51.15 | E106: C | F106: 12 | G106: C | H106: =VLOOKUP(E106,'UNIT CODES'!$A$2:$B$5,2,FALSE)*(D106)*(C106) -> $4.60 | I106: =VLOOKUP(G106,'UNIT CODES'!$A$2:$B$5,2,FALSE)*(F106)*(C106) -> 1.08
A107: 103 | B107: 4" ADAPTER FEM - PVC | C107: 18 | D107: $368.03 | E107: C | F107: 40 | G107: C | H107: =VLOOKUP(E107,'UNIT CODES'!$A$2:$B$5,2,FALSE)*(D107)*(C107) -> $66.25 | I107: =VLOOKUP(G107,'UNIT CODES'!$A$2:$B$5,2,FALSE)*(F107)*(C107) -> 7.20
A108: 104 | B108: 1" END CAP - PVC | C108: 3 | D108: $0.73 | E108: E | F108: 4 | G108: C | H108: =VLOOKUP(E108,'UNIT CODES'!$A$2:$B$5,2,FALSE)*(D108)*(C108) -> $2.19 | I108: =VLOOKUP(G108,'UNIT CODES'!$A$2:$B$5,2,FALSE)*(F108)*(C108) -> 0.12
A109: 105 | B109: #12 THHN BLACK | C109: 11,500 | D109: $120.68 | E109: M | F109: 5.15 | G109: M | H109: =VLOOKUP(E109,'UNIT CODES'!$A$2:$B$5,2,FALSE)*(D109)*(C109) -> $1,387.82 | I109: =VLOOKUP(G109,'UNIT CODES'!$A$2:$B$5,2,FALSE)*(F109)*(C109) -> 59.23
A110: 106 | B110: #10 THHN BLACK | C110: 15,500 | D110: $184.56 | E110: M | F110: 5.65 | G110: M | H110: =VLOOKUP(E110,'UNIT CODES'!$A$2:$B$5,2,FALSE)*(D110)*(C110) -> $2,860.68 | I110: =VLOOKUP(G110,'UNIT CODES'!$A$2:$B$5,2,FALSE)*(F110)*(C110) -> 87.58
A111: 107 | B111: # 4 THHN BLACK | C111: 160 | D111: $676.12 | E111: M | F111: 10.2 | G111: M | H111: =VLOOKUP(E111,'UNIT CODES'!$A$2:$B$5,2,FALSE)*(D111)*(C111) -> $108.18 | I111: =VLOOKUP(G111,'UNIT CODES'!$A$2:$B$5,2,FALSE)*(F111)*(C111) -> 1.63
A112: 108 | B112: #1/0 THHN BLACK | C112: 280 | D112: $1,642.78 | E112: M | F112: 14.2 | G112: M | H112: =VLOOKUP(E112,'UNIT CODES'!$A$2:$B$5,2,FALSE)*(D112)*(C112) -> $459.98 | I112: =VLOOKUP(G112,'UNIT CODES'!$A$2:$B$5,2,FALSE)*(F112)*(C112) -> 3.98
A113: 109 | B113: #350 THHN BLACK | C113: 368 | D113: $5,299.88 | E113: M | F113: 31.5 | G113: M | H113: =VLOOKUP(E113,'UNIT CODES'!$A$2:$B$5,2,FALSE)*(D113)*(C113) -> $1,950.36 | I113: =VLOOKUP(G113,'UNIT CODES'!$A$2:$B$5,2,FALSE)*(F113)*(C113) -> 11.59
A114: 110 | B114: # 6 THHN BLACK | C114: 310 | D114: $432.81 | E114: M | F114: 8.9 | G114: M | H114: =VLOOKUP(E114,'UNIT CODES'!$A$2:$B$5,2,FALSE)*(D114)*(C114) -> $134.17 | I114: =VLOOKUP(G114,'UNIT CODES'!$A$2:$B$5,2,FALSE)*(F114)*(C114) -> 2.76
A115: 111 | B115: # 2 THHN BLACK | C115: 35 | D115: $1,067.43 | E115: M | F115: 12.4 | G115: M | H115: =VLOOKUP(E115,'UNIT CODES'!$A$2:$B$5,2,FALSE)*(D115)*(C115) -> $37.36 | I115: =VLOOKUP(G115,'UNIT CODES'!$A$2:$B$5,2,FALSE)*(F115)*(C115) -> 0.43
A116: 112 | B116: # 1 THHN BLack | C116: 370 | D116: $1,341.79 | E116: M | F116: 13.5 | G116: M | H116: =VLOOKUP(E116,'UNIT CODES'!$A$2:$B$5,2,FALSE)*(D116)*(C116) -> $496.46 | I116: =VLOOKUP(G116,'UNIT CODES'!$A$2:$B$5,2,FALSE)*(F116)*(C116) -> 5.00
A117: 113 | B117: #250 MCM THHN BLACK | C117: 240 | D117: $3,774.31 | E117: M | F117: 24.2 | G117: M | H117: =VLOOKUP(E117,'UNIT CODES'!$A$2:$B$5,2,FALSE)*(D117)*(C117) -> $905.83 | I117: =VLOOKUP(G117,'UNIT CODES'!$A$2:$B$5,2,FALSE)*(F117)*(C117) -> 5.81
A118: 114 | B118: #500 MCM THHN BLACK | C118: 132 | D118: $7,617.97 | E118: M | F118: 38.8 | G118: M | H118: =VLOOKUP(E118,'UNIT CODES'!$A$2:$B$5,2,FALSE)*(D118)*(C118) -> $1,005.57 | I118: =VLOOKUP(G118,'UNIT CODES'!$A$2:$B$5,2,FALSE)*(F118)*(C118) -> 5.12
A119: 115 | B119: #600 MCM THHN BLACK | C119: 1,050 | D119: $9,674.84 | E119: M | F119: 45 | G119: M | H119: =VLOOKUP(E119,'UNIT CODES'!$A$2:$B$5,2,FALSE)*(D119)*(C119) -> $10,158.58 | I119: =VLOOKUP(G119,'UNIT CODES'!$A$2:$B$5,2,FALSE)*(F119)*(C119) -> 47.25
A120: 116 | B120: #12/2C SOLID CABLE MC - STL ARMOR | C120: 1,675 | D120: $440.37 | E120: M | F120: 17.4 | G120: M | H120: =VLOOKUP(E120,'UNIT CODES'!$A$2:$B$5,2,FALSE)*(D120)*(C120) -> $737.62 | I120: =VLOOKUP(G120,'UNIT CODES'!$A$2:$B$5,2,FALSE)*(F120)*(C120) -> 29.15
A121: 117 | B121: #10/2C SOLID CABLE MC - STL ARMOR | C121: 583 | D121: $939.76 | E121: M | F121: 21 | G121: M | H121: =VLOOKUP(E121,'UNIT CODES'!$A$2:$B$5,2,FALSE)*(D121)*(C121) -> $547.88 | I121: =VLOOKUP(G121,'UNIT CODES'!$A$2:$B$5,2,FALSE)*(F121)*(C121) -> 12.24
A122: 118 | B122: #12/3C SOLID CABLE MC - STL ARMOR | C122: 3,415 | D122: $746.86 | E122: M | F122: 19 | G122: M | H122: =VLOOKUP(E122,'UNIT CODES'!$A$2:$B$5,2,FALSE)*(D122)*(C122) -> $2,550.53 | I122: =VLOOKUP(G122,'UNIT CODES'!$A$2:$B$5,2,FALSE)*(F122)*(C122) -> 64.89
A123: 119 | B123: SER 3C # 2 - CU | C123: 5,400 | D123: $1.50 | E123: E | F123: 70 | G123: M | H123: =VLOOKUP(E123,'UNIT CODES'!$A$2:$B$5,2,FALSE)*(D123)*(C123) -> $8,100.00 | I123: =VLOOKUP(G123,'UNIT CODES'!$A$2:$B$5,2,FALSE)*(F123)*(C123) -> 378.00
A124: 120 | B124: #12/2C CORD - SOW | C124: 360 | D124: $769.34 | E124: M | F124: 26.4 | G124: M | H124: =VLOOKUP(E124,'UNIT CODES'!$A$2:$B$5,2,FALSE)*(D124)*(C124) -> $276.96 | I124: =VLOOKUP(G124,'UNIT CODES'!$A$2:$B$5,2,FALSE)*(F124)*(C124) -> 9.50
A125: 121 | B125: #14/2C NM-B | C125: 4,704 | D125: $184.39 | E125: M | F125: 13.5 | G125: M | H125: =VLOOKUP(E125,'UNIT CODES'!$A$2:$B$5,2,FALSE)*(D125)*(C125) -> $867.37 | I125: =VLOOKUP(G125,'UNIT CODES'!$A$2:$B$5,2,FALSE)*(F125)*(C125) -> 63.50
A126: 122 | B126: #12/2C NM-B | C126: 42,000 | D126: $273.13 | E126: M | F126: 14 | G126: M | H126: =VLOOKUP(E126,'UNIT CODES'!$A$2:$B$5,2,FALSE)*(D126)*(C126) -> $11,471.46 | I126: =VLOOKUP(G126,'UNIT CODES'!$A$2:$B$5,2,FALSE)*(F126)*(C126) -> 588.00
A127: 123 | B127: #14/3C NM-B | C127: 2,592 | D127: $262.86 | E127: M | F127: 16.5 | G127: M | H127: =VLOOKUP(E127,'UNIT CODES'!$A$2:$B$5,2,FALSE)*(D127)*(C127) -> $681.33 | I127: =VLOOKUP(G127,'UNIT CODES'!$A$2:$B$5,2,FALSE)*(F127)*(C127) -> 42.77
A128: 124 | B128: #12/3C NM-B | C128: 1,260 | D128: $401.15 | E128: M | F128: 18.6 | G128: M | H128: =VLOOKUP(E128,'UNIT CODES'!$A$2:$B$5,2,FALSE)*(D128)*(C128) -> $505.45 | I128: =VLOOKUP(G128,'UNIT CODES'!$A$2:$B$5,2,FALSE)*(F128)*(C128) -> 23.44
A129: 125 | B129: #10/3C NM-B | C129: 1,827 | D129: $635.27 | E129: M | F129: 22.8 | G129: M | H129: =VLOOKUP(E129,'UNIT CODES'!$A$2:$B$5,2,FALSE)*(D129)*(C129) -> $1,160.64 | I129: =VLOOKUP(G129,'UNIT CODES'!$A$2:$B$5,2,FALSE)*(F129)*(C129) -> 41.66
A130: 126 | B130: CAT 6 CABLE | C130: 1,050 | D130: $50.00 | E130: M | F130: 7.2 | G130: M | H130: =VLOOKUP(E130,'UNIT CODES'!$A$2:$B$5,2,FALSE)*(D130)*(C130) -> $52.50 | I130: =VLOOKUP(G130,'UNIT CODES'!$A$2:$B$5,2,FALSE)*(F130)*(C130) -> 7.56
A131: 127 | B131: 3/8" CONN SADDLEGRIP DC FOR FLEX / AC-90 / MC | C131: 624 | D131: $48.23 | E131: C | F131: 6 | G131: C | H131: =VLOOKUP(E131,'UNIT CODES'!$A$2:$B$5,2,FALSE)*(D131)*(C131) -> $300.96 | I131: =VLOOKUP(G131,'UNIT CODES'!$A$2:$B$5,2,FALSE)*(F131)*(C131) -> 37.44
A132: 128 | B132: 1/2" CONN SADDLEGRIP DC FOR FLEX / AC-90 / MC | C132: 164 | D132: $1.60 | E132: E | F132: 9 | G132: C | H132: =VLOOKUP(E132,'UNIT CODES'!$A$2:$B$5,2,FALSE)*(D132)*(C132) -> $262.40 | I132: =VLOOKUP(G132,'UNIT CODES'!$A$2:$B$5,2,FALSE)*(F132)*(C132) -> 14.76
A133: 129 | B133: 1/2" CONN 2-SCREW STRAP TYPE DC FOR NMC | C133: 3,372 | D133: $0.50 | E133: E | F133: 9 | G133: C | H133: =VLOOKUP(E133,'UNIT CODES'!$A$2:$B$5,2,FALSE)*(D133)*(C133) -> $1,686.00 | I133: =VLOOKUP(G133,'UNIT CODES'!$A$2:$B$5,2,FALSE)*(F133)*(C133) -> 303.48
A134: 130 | B134: 1 1/2" CONN 2-SCREW STRAP TYPE DC FOR ROUND NMC | C134: 90 | D134: $186.00 | E134: C | F134: 23 | G134: C | H134: =VLOOKUP(E134,'UNIT CODES'!$A$2:$B$5,2,FALSE)*(D134)*(C134) -> $167.40 | I134: =VLOOKUP(G134,'UNIT CODES'!$A$2:$B$5,2,FALSE)*(F134)*(C134) -> 20.70
A135: 131 | B135: #12/2C CORD CONN - SO - 3/4" HUB | C135: 120 | D135: $4.10 | E135: E | F135: 43 | G135: C | H135: =VLOOKUP(E135,'UNIT CODES'!$A$2:$B$5,2,FALSE)*(D135)*(C135) -> $492.00 | I135: =VLOOKUP(G135,'UNIT CODES'!$A$2:$B$5,2,FALSE)*(F135)*(C135) -> 51.60
A136: 132 | B136: 1-H STRAP #14/2 & #12/2 | C136: 42 | D136: $19.12 | E136: C | F136: 4.6 | G136: C | H136: =VLOOKUP(E136,'UNIT CODES'!$A$2:$B$5,2,FALSE)*(D136)*(C136) -> $8.03 | I136: =VLOOKUP(G136,'UNIT CODES'!$A$2:$B$5,2,FALSE)*(F136)*(C136) -> 1.93
A137: 133 | B137: 1-H STRAP #14/3 & #12/3 | C137: 361 | D137: $20.33 | E137: C | F137: 4.6 | G137: C | H137: =VLOOKUP(E137,'UNIT CODES'!$A$2:$B$5,2,FALSE)*(D137)*(C137) -> $73.39 | I137: =VLOOKUP(G137,'UNIT CODES'!$A$2:$B$5,2,FALSE)*(F137)*(C137) -> 16.61
A138: 134 | B138: 1-H STRAP #12/4 & #10/2 & #10/3 | C138: 89 | D138: $10.80 | E138: C | F138: 4.6 | G138: C | H138: =VLOOKUP(E138,'UNIT CODES'!$A$2:$B$5,2,FALSE)*(D138)*(C138) -> $9.61 | I138: =VLOOKUP(G138,'UNIT CODES'!$A$2:$B$5,2,FALSE)*(F138)*(C138) -> 4.09
A139: 135 | B139: 1-H CABLE STRAP | C139: 88 | D139: $0.10 | E139: E | F139: 2 | G139: C | H139: =VLOOKUP(E139,'UNIT CODES'!$A$2:$B$5,2,FALSE)*(D139)*(C139) -> $8.80 | I139: =VLOOKUP(G139,'UNIT CODES'!$A$2:$B$5,2,FALSE)*(F139)*(C139) -> 1.76
A140: 136 | B140: 1" ROMEX STAPLE | C140: 20,000 | D140: $1.00 | E140: C | F140: 1 | G140: C | H140: =VLOOKUP(E140,'UNIT CODES'!$A$2:$B$5,2,FALSE)*(D140)*(C140) -> $200.00 | I140: =VLOOKUP(G140,'UNIT CODES'!$A$2:$B$5,2,FALSE)*(F140)*(C140) -> 200.00
A141: 137 | B141: SER 2/3 STAPLE | C141: 572 | D141: $7.00 | E141: C | F141: 0.05 | G141: E | H141: =VLOOKUP(E141,'UNIT CODES'!$A$2:$B$5,2,FALSE)*(D141)*(C141) -> $40.04 | I141: =VLOOKUP(G141,'UNIT CODES'!$A$2:$B$5,2,FALSE)*(F141)*(C141) -> 28.60
A142: 138 | B142: COMPRESSION LUG - CU W/ 1- 9/32" HOLE - # 6 CU WIRE | C142: 16 | D142: $3.00 | E142: E | F142: 13 | G142: C | H142: =VLOOKUP(E142,'UNIT CODES'!$A$2:$B$5,2,FALSE)*(D142)*(C142) -> $48.00 | I142: =VLOOKUP(G142,'UNIT CODES'!$A$2:$B$5,2,FALSE)*(F142)*(C142) -> 2.08
A143: 139 | B143: WIRE CONN YEL | C143: 5,529 | D143: $9.42 | E143: C | F143: 2 | G143: C | H143: =VLOOKUP(E143,'UNIT CODES'!$A$2:$B$5,2,FALSE)*(D143)*(C143) -> $520.83 | I143: =VLOOKUP(G143,'UNIT CODES'!$A$2:$B$5,2,FALSE)*(F143)*(C143) -> 110.58
A144: 140 | B144: WIRE CONN RED | C144: 13,592 | D144: $11.52 | E144: C | F144: 2 | G144: C | H144: =VLOOKUP(E144,'UNIT CODES'!$A$2:$B$5,2,FALSE)*(D144)*(C144) -> $1,565.80 | I144: =VLOOKUP(G144,'UNIT CODES'!$A$2:$B$5,2,FALSE)*(F144)*(C144) -> 271.84
A145: 141 | B145: 1/8" POLYTWINE | C145: 426 | D145: $30.00 | E145: M | F145: 3 | G145: M | H145: =VLOOKUP(E145,'UNIT CODES'!$A$2:$B$5,2,FALSE)*(D145)*(C145) -> $12.78 | I145: =VLOOKUP(G145,'UNIT CODES'!$A$2:$B$5,2,FALSE)*(F145)*(C145) -> 1.28
A146: 142 | B146: SILICONE SEALANT (TUBE) | C146: 49 | D146: $6.58 | E146: E | F146: 1.5 | G146: E | H146: =VLOOKUP(E146,'UNIT CODES'!$A$2:$B$5,2,FALSE)*(D146)*(C146) -> $322.42 | I146: =VLOOKUP(G146,'UNIT CODES'!$A$2:$B$5,2,FALSE)*(F146)*(C146) -> 73.50
A147: 143 | B147: 4x 1 1/2" OCT BOX 1/2" KO | C147: 3 | D147: $88.74 | E147: C | F147: 22 | G147: C | H147: =VLOOKUP(E147,'UNIT CODES'!$A$2:$B$5,2,FALSE)*(D147)*(C147) -> $2.66 | I147: =VLOOKUP(G147,'UNIT CODES'!$A$2:$B$5,2,FALSE)*(F147)*(C147) -> 0.66
A148: 144 | B148: 4x 1 1/2" OCT BOX COMB KO | C148: 23 | D148: $1.75 | E148: E | F148: 22 | G148: C | H148: =VLOOKUP(E148,'UNIT CODES'!$A$2:$B$5,2,FALSE)*(D148)*(C148) -> $40.25 | I148: =VLOOKUP(G148,'UNIT CODES'!$A$2:$B$5,2,FALSE)*(F148)*(C148) -> 5.06
A149: 145 | B149: 4x 1 1/2" OCT BOX 1/2" KO W/ RCSD SIDE BRKT | C149: 79 | D149: $1.31 | E149: E | F149: 22 | G149: C | H149: =VLOOKUP(E149,'UNIT CODES'!$A$2:$B$5,2,FALSE)*(D149)*(C149) -> $103.49 | I149: =VLOOKUP(G149,'UNIT CODES'!$A$2:$B$5,2,FALSE)*(F149)*(C149) -> 17.38
A150: 146 | B150: 4x 1 1/2" OCT BOX 1/2" KO W/ BAR HNGR | C150: 550 | D150: $14.44 | E150: E | F150: 22 | G150: C | H150: =VLOOKUP(E150,'UNIT CODES'!$A$2:$B$5,2,FALSE)*(D150)*(C150) -> $7,942.00 | I150: =VLOOKUP(G150,'UNIT CODES'!$A$2:$B$5,2,FALSE)*(F150)*(C150) -> 121.00
A151: 147 | B151: 4x 1 1/2" OCT BOX AC-90 CLAMP W/ BAR HNGR | C151: 38 | D151: $1.71 | E151: E | F151: 22 | G151: C | H151: =VLOOKUP(E151,'UNIT CODES'!$A$2:$B$5,2,FALSE)*(D151)*(C151) -> $64.98 | I151: =VLOOKUP(G151,'UNIT CODES'!$A$2:$B$5,2,FALSE)*(F151)*(C151) -> 8.36
A152: 148 | B152: 4x 1 1/2" SQ BOX COMB KO | C152: 217 | D152: $64.87 | E152: C | F152: 23 | G152: C | H152: =VLOOKUP(E152,'UNIT CODES'!$A$2:$B$5,2,FALSE)*(D152)*(C152) -> $140.77 | I152: =VLOOKUP(G152,'UNIT CODES'!$A$2:$B$5,2,FALSE)*(F152)*(C152) -> 49.91
A153: 149 | B153: 4x 1 1/2" SQ BOX COMB KO W/ FLUSH SIDE MNT BRKT | C153: 61 | D153: $7.15 | E153: E | F153: 23 | G153: C | H153: =VLOOKUP(E153,'UNIT CODES'!$A$2:$B$5,2,FALSE)*(D153)*(C153) -> $436.15 | I153: =VLOOKUP(G153,'UNIT CODES'!$A$2:$B$5,2,FALSE)*(F153)*(C153) -> 14.03
A154: 150 | B154: 4x 1 1/2" SQ BOX COMB KO W/ FLUSH MTL STUD BRKT | C154: 110 | D154: $114.28 | E154: C | F154: 23 | G154: C | H154: =VLOOKUP(E154,'UNIT CODES'!$A$2:$B$5,2,FALSE)*(D154)*(C154) -> $125.71 | I154: =VLOOKUP(G154,'UNIT CODES'!$A$2:$B$5,2,FALSE)*(F154)*(C154) -> 25.30
A155: 151 | B155: 4x 2 1/8" SQ BOX COMB KO | C155: 183 | D155: $107.60 | E155: C | F155: 23 | G155: C | H155: =VLOOKUP(E155,'UNIT CODES'!$A$2:$B$5,2,FALSE)*(D155)*(C155) -> $196.91 | I155: =VLOOKUP(G155,'UNIT CODES'!$A$2:$B$5,2,FALSE)*(F155)*(C155) -> 42.09
A156: 152 | B156: 4" SQ 1G PLSTR RING 5/8" RISE | C156: 129 | D156: $1.21 | E156: E | F156: 2.5 | G156: C | H156: =VLOOKUP(E156,'UNIT CODES'!$A$2:$B$5,2,FALSE)*(D156)*(C156) -> $156.09 | I156: =VLOOKUP(G156,'UNIT CODES'!$A$2:$B$5,2,FALSE)*(F156)*(C156) -> 3.23
A157: 153 | B157: 4x 2 1/8" SQ BOX Large Capacity W up to 2" KO | C157: 2 | D157: $9.21 | E157: E | F157: 23 | G157: C | H157: =VLOOKUP(E157,'UNIT CODES'!$A$2:$B$5,2,FALSE)*(D157)*(C157) -> $18.42 | I157: =VLOOKUP(G157,'UNIT CODES'!$A$2:$B$5,2,FALSE)*(F157)*(C157) -> 0.46
A158: 154 | B158: 4" SQ BLANK COVER | C158: 3,546 | D158: $27.19 | E158: C | F158: 2.5 | G158: C | H158: =VLOOKUP(E158,'UNIT CODES'!$A$2:$B$5,2,FALSE)*(D158)*(C158) -> $964.16 | I158: =VLOOKUP(G158,'UNIT CODES'!$A$2:$B$5,2,FALSE)*(F158)*(C158) -> 88.65
A159: 155 | B159: 4 11/16x 1 1/2" SQ BOX COMB KO | C159: 2 | D159: $2.84 | E159: E | F159: 25 | G159: C | H159: =VLOOKUP(E159,'UNIT CODES'!$A$2:$B$5,2,FALSE)*(D159)*(C159) -> $5.68 | I159: =VLOOKUP(G159,'UNIT CODES'!$A$2:$B$5,2,FALSE)*(F159)*(C159) -> 0.50
A160: 156 | B160: 4 11/16x 2 1/8" SQ BOX COMB KO | C160: 26 | D160: $2.43 | E160: E | F160: 25 | G160: C | H160: =VLOOKUP(E160,'UNIT CODES'!$A$2:$B$5,2,FALSE)*(D160)*(C160) -> $63.18 | I160: =VLOOKUP(G160,'UNIT CODES'!$A$2:$B$5,2,FALSE)*(F160)*(C160) -> 6.50
A161: 157 | B161: 4 11/16x 2 1/8" SQ BOX 1" KO | C161: 18 | D161: $245.42 | E161: C | F161: 25 | G161: C | H161: =VLOOKUP(E161,'UNIT CODES'!$A$2:$B$5,2,FALSE)*(D161)*(C161) -> $44.18 | I161: =VLOOKUP(G161,'UNIT CODES'!$A$2:$B$5,2,FALSE)*(F161)*(C161) -> 4.50
A162: 158 | B162: 4 11/16" SQ BLANK COVER | C162: 22 | D162: $62.10 | E162: C | F162: 2.5 | G162: C | H162: =VLOOKUP(E162,'UNIT CODES'!$A$2:$B$5,2,FALSE)*(D162)*(C162) -> $13.66 | I162: =VLOOKUP(G162,'UNIT CODES'!$A$2:$B$5,2,FALSE)*(F162)*(C162) -> 0.55
A163: 159 | B163: 4 11/16" SQ 1G PLSTR RING 5/8" RISE | C163: 2 | D163: $1.05 | E163: C | F163: 2.5 | G163: C | H163: =VLOOKUP(E163,'UNIT CODES'!$A$2:$B$5,2,FALSE)*(D163)*(C163) -> $0.02 | I163: =VLOOKUP(G163,'UNIT CODES'!$A$2:$B$5,2,FALSE)*(F163)*(C163) -> 0.05
A164: 160 | B164: 4 11/16" SQ 2G PLSTR RING 5/8" RISE | C164: 9 | D164: $3.00 | E164: E | F164: 2.5 | G164: C | H164: =VLOOKUP(E164,'UNIT CODES'!$A$2:$B$5,2,FALSE)*(D164)*(C164) -> $27.00 | I164: =VLOOKUP(G164,'UNIT CODES'!$A$2:$B$5,2,FALSE)*(F164)*(C164) -> 0.23
A165: 161 | B165: 4x 1 1/2" OCT BOX NMC CLAMP W/ RCSD FLAT BRKT | C165: 67 | D165: $3.10 | E165: C | F165: 22 | G165: C | H165: =VLOOKUP(E165,'UNIT CODES'!$A$2:$B$5,2,FALSE)*(D165)*(C165) -> $2.08 | I165: =VLOOKUP(G165,'UNIT CODES'!$A$2:$B$5,2,FALSE)*(F165)*(C165) -> 14.74
A166: 162 | B166: 4x 1 1/2" OCT BOX NMC CLAMP W/ BAR HNGR | C166: 45 | D166: $2.84 | E166: E | F166: 22 | G166: C | H166: =VLOOKUP(E166,'UNIT CODES'!$A$2:$B$5,2,FALSE)*(D166)*(C166) -> $127.80 | I166: =VLOOKUP(G166,'UNIT CODES'!$A$2:$B$5,2,FALSE)*(F166)*(C166) -> 9.90
A167: 163 | B167: 1G NM DEV BOX 3 3/8" DEEP W/ NAILS - 22.5ci | C167: 65 | D167: $0.75 | E167: C | F167: 22 | G167: C | H167: =VLOOKUP(E167,'UNIT CODES'!$A$2:$B$5,2,FALSE)*(D167)*(C167) -> $0.49 | I167: =VLOOKUP(G167,'UNIT CODES'!$A$2:$B$5,2,FALSE)*(F167)*(C167) -> 14.30
A168: 164 | B168: 1G NM DEV BOX 3 3/8" DEEP W/ DEVICE QUICK CONNECT | C168: 1,388 | D168: $0.50 | E168: E | F168: 22 | G168: C | H168: =VLOOKUP(E168,'UNIT CODES'!$A$2:$B$5,2,FALSE)*(D168)*(C168) -> $694.00 | I168: =VLOOKUP(G168,'UNIT CODES'!$A$2:$B$5,2,FALSE)*(F168)*(C168) -> 305.36
A169: 165 | B169: 1G NM BOX 2 3/4" DEEP SIDE BRKT W/ DEVICE QUICK CONNECT | C169: 167 | D169: $0.50 | E169: E | F169: 22 | G169: C | H169: =VLOOKUP(E169,'UNIT CODES'!$A$2:$B$5,2,FALSE)*(D169)*(C169) -> $83.50 | I169: =VLOOKUP(G169,'UNIT CODES'!$A$2:$B$5,2,FALSE)*(F169)*(C169) -> 36.74
A170: 166 | B170: 2G NM BOX 2 7/8" DEEP SIDE BRKT W/ DEVICE QUICK CONNECT | C170: 141 | D170: $1.00 | E170: E | F170: 22 | G170: C | H170: =VLOOKUP(E170,'UNIT CODES'!$A$2:$B$5,2,FALSE)*(D170)*(C170) -> $141.00 | I170: =VLOOKUP(G170,'UNIT CODES'!$A$2:$B$5,2,FALSE)*(F170)*(C170) -> 31.02
A171: 167 | B171: 3G NM BOX 3" DEEP SIDE BRKT W/ DEVICE QUICK CONNECT | C171: 104 | D171: $2.37 | E171: E | F171: 26 | G171: C | H171: =VLOOKUP(E171,'UNIT CODES'!$A$2:$B$5,2,FALSE)*(D171)*(C171) -> $246.48 | I171: =VLOOKUP(G171,'UNIT CODES'!$A$2:$B$5,2,FALSE)*(F171)*(C171) -> 27.04
A172: 168 | B172: 4x 1 1/2" SQ NM BOX SIDE BRKT | C172: 3,111 | D172: $2.53 | E172: E | F172: 22 | G172: C | H172: =VLOOKUP(E172,'UNIT CODES'!$A$2:$B$5,2,FALSE)*(D172)*(C172) -> $7,870.83 | I172: =VLOOKUP(G172,'UNIT CODES'!$A$2:$B$5,2,FALSE)*(F172)*(C172) -> 684.42
A173: 169 | B173: 4x 2 1/8" RND NM BOX + GRD | C173: 42 | D173: $2.00 | E173: E | F173: 22 | G173: C | H173: =VLOOKUP(E173,'UNIT CODES'!$A$2:$B$5,2,FALSE)*(D173)*(C173) -> $84.00 | I173: =VLOOKUP(G173,'UNIT CODES'!$A$2:$B$5,2,FALSE)*(F173)*(C173) -> 9.24
A174: 170 | B174: 1G 2"D DC ALUM BOX W/ LUGS & 3x 3/4" HUBS GRY | C174: 2 | D174: $473.53 | E174: C | F174: 0.35 | G174: E | H174: =VLOOKUP(E174,'UNIT CODES'!$A$2:$B$5,2,FALSE)*(D174)*(C174) -> $9.47 | I174: =VLOOKUP(G174,'UNIT CODES'!$A$2:$B$5,2,FALSE)*(F174)*(C174) -> 0.70
A175: 171 | B175: 2G ALUM DB Box WP Switch COVER GRY | C175: 2 | D175: $15.00 | E175: E | F175: 0.07 | G175: E | H175: =VLOOKUP(E175,'UNIT CODES'!$A$2:$B$5,2,FALSE)*(D175)*(C175) -> $30.00 | I175: =VLOOKUP(G175,'UNIT CODES'!$A$2:$B$5,2,FALSE)*(F175)*(C175) -> 0.14
A176: 172 | B176: GROUND SCREW W/ INSUL #12 LEAD | C176: 76 | D176: $385.64 | E176: M | F176: 3 | G176: C | H176: =VLOOKUP(E176,'UNIT CODES'!$A$2:$B$5,2,FALSE)*(D176)*(C176) -> $29.31 | I176: =VLOOKUP(G176,'UNIT CODES'!$A$2:$B$5,2,FALSE)*(F176)*(C176) -> 2.28
A177: 173 | B177: 21" Vented Structured Media Panel | C177: 69 | D177: $30.00 | E177: E | F177: 1 | G177: E | H177: =VLOOKUP(E177,'UNIT CODES'!$A$2:$B$5,2,FALSE)*(D177)*(C177) -> $2,070.00 | I177: =VLOOKUP(G177,'UNIT CODES'!$A$2:$B$5,2,FALSE)*(F177)*(C177) -> 69.00
A178: 174 | B178: 3/4"x 10' GALV GRD ROD | C178: 8 | D178: $40.00 | E178: E | F178: 1 | G178: E | H178: =VLOOKUP(E178,'UNIT CODES'!$A$2:$B$5,2,FALSE)*(D178)*(C178) -> $320.00 | I178: =VLOOKUP(G178,'UNIT CODES'!$A$2:$B$5,2,FALSE)*(F178)*(C178) -> 8.00
A179: 175 | B179: BURNDY GAR114C 1/2" Rod TO #4 STR | C179: 8 | D179: $35.00 | E179: E | F179: 0.35 | G179: E | H179: =VLOOKUP(E179,'UNIT CODES'!$A$2:$B$5,2,FALSE)*(D179)*(C179) -> $280.00 | I179: =VLOOKUP(G179,'UNIT CODES'!$A$2:$B$5,2,FALSE)*(F179)*(C179) -> 2.80
A180: 176 | B180: Grn Buss Gr 1/4" X 2" X 15" Erico EGBA14215TES | C180: 12 | D180: $120.00 | E180: E | F180: 1 | G180: E | H180: =VLOOKUP(E180,'UNIT CODES'!$A$2:$B$5,2,FALSE)*(D180)*(C180) -> $1,440.00 | I180: =VLOOKUP(G180,'UNIT CODES'!$A$2:$B$5,2,FALSE)*(F180)*(C180) -> 12.00
A181: 177 | B181: Polymar Hand Hole W Cover | C181: 2 | D181: $210.00 | E181: E | F181: 2.5 | G181: E | H181: =VLOOKUP(E181,'UNIT CODES'!$A$2:$B$5,2,FALSE)*(D181)*(C181) -> $420.00 | I181: =VLOOKUP(G181,'UNIT CODES'!$A$2:$B$5,2,FALSE)*(F181)*(C181) -> 5.00
A182: 178 | B182: 1 5/8x 1 5/8x 12G STRUT SLOTTED HOLE GALV | C182: 506 | D182: $3.18 | E182: E | F182: 10 | G182: C | H182: =VLOOKUP(E182,'UNIT CODES'!$A$2:$B$5,2,FALSE)*(D182)*(C182) -> $1,609.08 | I182: =VLOOKUP(G182,'UNIT CODES'!$A$2:$B$5,2,FALSE)*(F182)*(C182) -> 50.60
A183: 179 | B183: #8x 3/4 F/H SELF-TAP SCREW | C183: 2 | D183: $0.00 | E183: C | F183: 2.6 | G183: C | H183: =VLOOKUP(E183,'UNIT CODES'!$A$2:$B$5,2,FALSE)*(D183)*(C183) -> $0.00 | I183: =VLOOKUP(G183,'UNIT CODES'!$A$2:$B$5,2,FALSE)*(F183)*(C183) -> 0.05
A184: 180 | B184: #10x 1 P/H SELF-TAP SCREW | C184: 2,090 | D184: $0.00 | E184: C | F184: 3 | G184: C | H184: =VLOOKUP(E184,'UNIT CODES'!$A$2:$B$5,2,FALSE)*(D184)*(C184) -> $0.00 | I184: =VLOOKUP(G184,'UNIT CODES'!$A$2:$B$5,2,FALSE)*(F184)*(C184) -> 62.70
A185: 181 | B185: #10x 3/4 WOOD SCREW | C185: 84 | D185: $0.00 | E185: C | F185: 2.8 | G185: C | H185: =VLOOKUP(E185,'UNIT CODES'!$A$2:$B$5,2,FALSE)*(D185)*(C185) -> $0.00 | I185: =VLOOKUP(G185,'UNIT CODES'!$A$2:$B$5,2,FALSE)*(F185)*(C185) -> 2.35
A186: 182 | B186: #10x 1 WOOD SCREW | C186: 132 | D186: $0.00 | E186: C | F186: 3 | G186: C | H186: =VLOOKUP(E186,'UNIT CODES'!$A$2:$B$5,2,FALSE)*(D186)*(C186) -> $0.00 | I186: =VLOOKUP(G186,'UNIT CODES'!$A$2:$B$5,2,FALSE)*(F186)*(C186) -> 3.96
A187: 183 | B187: #8x 1/2 WAFER HEAD SHEET MTL SCREW | C187: 248 | D187: $0.00 | E187: C | F187: 1.5 | G187: C | H187: =VLOOKUP(E187,'UNIT CODES'!$A$2:$B$5,2,FALSE)*(D187)*(C187) -> $0.00 | I187: =VLOOKUP(G187,'UNIT CODES'!$A$2:$B$5,2,FALSE)*(F187)*(C187) -> 3.72
A188: 184 | B188: BEAM CLAMP FOR 1/2-13 ROD OR STRUT END TO 1" FLNG | C188: 12 | D188: $5.00 | E188: E | F188: 10 | G188: C | H188: =VLOOKUP(E188,'UNIT CODES'!$A$2:$B$5,2,FALSE)*(D188)*(C188) -> $60.00 | I188: =VLOOKUP(G188,'UNIT CODES'!$A$2:$B$5,2,FALSE)*(F188)*(C188) -> 1.20
A189: 185 | B189: Misc Hardware | C189: 658 | D189: $1.00 | E189: E | F189: 0.01 | G189: E | H189: =VLOOKUP(E189,'UNIT CODES'!$A$2:$B$5,2,FALSE)*(D189)*(C189) -> $658.00 | I189: =VLOOKUP(G189,'UNIT CODES'!$A$2:$B$5,2,FALSE)*(F189)*(C189) -> 6.58
A190: 186 | B190: 4' X8' X 3/4" Plywood Fire Rated | C190: 8 | D190: $48.00 | E190: E | F190: 0.33 | G190: E | H190: =VLOOKUP(E190,'UNIT CODES'!$A$2:$B$5,2,FALSE)*(D190)*(C190) -> $384.00 | I190: =VLOOKUP(G190,'UNIT CODES'!$A$2:$B$5,2,FALSE)*(F190)*(C190) -> 2.64
A191: 187 | B191: 1G TGL SWITCH PLATE - PLASTIC IVY | C191: 270 | D191: $0.40 | E191: E | F191: 3 | G191: C | H191: =VLOOKUP(E191,'UNIT CODES'!$A$2:$B$5,2,FALSE)*(D191)*(C191) -> $108.00 | I191: =VLOOKUP(G191,'UNIT CODES'!$A$2:$B$5,2,FALSE)*(F191)*(C191) -> 8.10
A192: 188 | B192: 2G TGL SWITCH PLATE - PLASTIC IVY | C192: 141 | D192: $0.77 | E192: E | F192: 4.5 | G192: C | H192: =VLOOKUP(E192,'UNIT CODES'!$A$2:$B$5,2,FALSE)*(D192)*(C192) -> $108.57 | I192: =VLOOKUP(G192,'UNIT CODES'!$A$2:$B$5,2,FALSE)*(F192)*(C192) -> 6.35
A193: 189 | B193: 3G TGL SWITCH PLATE - PLASTIC IVY | C193: 104 | D193: $2.31 | E193: E | F193: 6 | G193: C | H193: =VLOOKUP(E193,'UNIT CODES'!$A$2:$B$5,2,FALSE)*(D193)*(C193) -> $240.24 | I193: =VLOOKUP(G193,'UNIT CODES'!$A$2:$B$5,2,FALSE)*(F193)*(C193) -> 6.24
A194: 190 | B194: 1G SINGLE REC PLATE - PLASTIC IVY | C194: 1 | D194: $0.64 | E194: E | F194: 3 | G194: C | H194: =VLOOKUP(E194,'UNIT CODES'!$A$2:$B$5,2,FALSE)*(D194)*(C194) -> $0.64 | I194: =VLOOKUP(G194,'UNIT CODES'!$A$2:$B$5,2,FALSE)*(F194)*(C194) -> 0.03
A195: 191 | B195: 1G DUPLEX REC PLATE - PLASTIC IVY | C195: 1,308 | D195: $0.35 | E195: E | F195: 2.7 | G195: C | H195: =VLOOKUP(E195,'UNIT CODES'!$A$2:$B$5,2,FALSE)*(D195)*(C195) -> $457.80 | I195: =VLOOKUP(G195,'UNIT CODES'!$A$2:$B$5,2,FALSE)*(F195)*(C195) -> 35.32
A196: 192 | B196: 2G DUPLEX REC PLATE - PLASTIC IVY | C196: 9 | D196: $0.67 | E196: E | F196: 3.9 | G196: C | H196: =VLOOKUP(E196,'UNIT CODES'!$A$2:$B$5,2,FALSE)*(D196)*(C196) -> $6.03 | I196: =VLOOKUP(G196,'UNIT CODES'!$A$2:$B$5,2,FALSE)*(F196)*(C196) -> 0.35
A197: 193 | B197: 1G DECORATOR PLATE - PLASTIC IVY | C197: 4 | D197: $0.70 | E197: E | F197: 3 | G197: C | H197: =VLOOKUP(E197,'UNIT CODES'!$A$2:$B$5,2,FALSE)*(D197)*(C197) -> $2.80 | I197: =VLOOKUP(G197,'UNIT CODES'!$A$2:$B$5,2,FALSE)*(F197)*(C197) -> 0.12
A198: 194 | B198: 1G UNIV WP-IN-USE PLATE - DEVICE MNT VERT/HORZ - CLEAR | C198: 35 | D198: $49.51 | E198: E | F198: 6 | G198: C | H198: =VLOOKUP(E198,'UNIT CODES'!$A$2:$B$5,2,FALSE)*(D198)*(C198) -> $1,732.85 | I198: =VLOOKUP(G198,'UNIT CODES'!$A$2:$B$5,2,FALSE)*(F198)*(C198) -> 2.10
A199: 195 | B199: Meatal cover W 1/2" KO | C199: 67 | D199: $2.38 | E199: E | F199: 3 | G199: C | H199: =VLOOKUP(E199,'UNIT CODES'!$A$2:$B$5,2,FALSE)*(D199)*(C199) -> $159.46 | I199: =VLOOKUP(G199,'UNIT CODES'!$A$2:$B$5,2,FALSE)*(F199)*(C199) -> 2.01
A200: 196 | B200: 20A S/P SW - TOGGLE | C200: 593 | D200: $3.00 | E200: E | F200: 14 | G200: C | H200: =VLOOKUP(E200,'UNIT CODES'!$A$2:$B$5,2,FALSE)*(D200)*(C200) -> $1,779.00 | I200: =VLOOKUP(G200,'UNIT CODES'!$A$2:$B$5,2,FALSE)*(F200)*(C200) -> 83.02
A201: 197 | B201: 20A 120-277V 3/W SW - TOGGLE IVY (SG) | C201: 328 | D201: $5.00 | E201: E | F201: 20 | G201: C | H201: =VLOOKUP(E201,'UNIT CODES'!$A$2:$B$5,2,FALSE)*(D201)*(C201) -> $1,640.00 | I201: =VLOOKUP(G201,'UNIT CODES'!$A$2:$B$5,2,FALSE)*(F201)*(C201) -> 65.60
... 104 more rows

Sheet UNIT CODES
A1: UNIT CODES | B1: VALUES
A2: E | B2: 1
A3: C | B3: 0.01
A4: M | B4: 0.001

Sheet RENTALS
B2: RENTALS
C3: Daily | D3: Weekly | E3: Monthly
B4: Excavators | C4: $230.00 | D4: $690.00 | E4: $1,980.00
B5: Trencher | C5: $155.00 | D5: $620.00 | E5: $1,740.00
B6: Bobcat | C6: $180.00 | D6: $540.00 | E6: $1,620.00
B7: Auger Attachment | C7: $100.00 | D7: $300.00 | E7: $900.00
B8: Packer | C8: $75.00 | D8: $300.00 | E8: $900.00
B9: Slab Saw | C9: $75.00 | D9: $300.00 | E9: $900.00
B10: Breaker | C10: $120.00 | D10: $480.00 | E10: $1,440.00
B11: Core Drill | C11: $80.00 | D11: $320.00
B12: Sizzor Narrow | C12: $135.00 | D12: $405.00 | E12: $1,125.00
B13: Sizzor All Terain | C13: $250.00 | D13: $750.00 | E13: $2,000.00
B14: 40' Manlift | C14: $250.00 | D14: $750.00 | E14: $2,115.00
B15: Reach Forklift | C15: $360.00 | D15: $1,080.00 | E15: $3,150.00
